bitfinex-derivatives/quotes_BTCF0:USTF0_20220103
["timestamp","ask_amount","ask_price","bid_price","bid_amount"]
[1641215714373,1.20104182,47260.0,47259.0,0.78072281]
[1641215714775,1.20104182,47260.0,47259.0,0.80188317]
[1641215715077,1.20104182,47260.0,47259.0,0.08116036]
[1641215715475,0.0900752,47266.0,47259.0,0.14496036]
[1641215715675,0.0900752,47266.0,47265.0,0.2]
[1641215715875,1.58157824,47268.0,47265.0,0.2]
[1641215716076,1.44124257,47268.0,47267.0,0.12]
[1641215717278,1.44124257,47268.0,47267.0,0.33215596]
[1641215717879,0.98901253,47272.0,47267.0,0.33215596]
[1641215717880,0.36678812,47272.0,47267.0,0.33215596]
[1641215718079,0.36678812,47272.0,47271.0,0.14]
[1641215718880,0.14033567,47280.0,47271.0,0.14]
[1641215718881,1.44124257,47276.0,47271.0,0.14]
[1641215719380,1.44124257,47276.0,47271.0,0.176]
[1641215719680,1.44124257,47276.0,47275.0,0.14]
[1641215720083,1.44124257,47276.0,47272.0,0.14]
[1641215720882,1.44124257,47276.0,47272.0,0.73429209]
[1641215721383,1.44724257,47276.0,47272.0,0.90829209]
[1641215722182,1.44724257,47276.0,47275.0,0.14]
[1641215722482,1.44124257,47276.0,47275.0,0.14]
[1641215723285,1.60524257,47276.0,47275.0,0.302]
[1641215723687,0.164,47276.0,47275.0,0.302]
[1641215724488,1.44124257,47277.0,47275.0,0.14]
[1641215724888,1.44124257,47277.0,47275.0,0.21115]
[1641215725289,1.47524257,47277.0,47275.0,0.40015]
[1641215725491,0.034,47277.0,47275.0,0.40015]
[1641215725695,0.034,47277.0,47275.0,0.99444209]
[1641215726389,0.034,47277.0,47275.0,1.13477776]
[1641215726594,1.44124257,47279.0,47275.0,0.94577776]
[1641215727292,1.57224257,47279.0,47275.0,1.12677776]
[1641215727794,1.57224257,47279.0,47275.0,0.98677776]
[1641215727997,1.57224257,47279.0,47278.0,0.14]
[1641215728593,1.44124257,47279.0,47278.0,0.14]
[1641215729194,1.61624257,47279.0,47278.0,0.312]
[1641215730599,1.61624257,47279.0,47278.0,0.14]
[1641215730797,1.44124257,47279.0,47278.0,0.14]
[1641215731201,1.61424257,47279.0,47278.0,0.306]
[1641215731599,1.70429556,47279.0,47278.0,0.306]
[1641215732602,1.53129556,47279.0,47278.0,0.14]
[1641215733221,0.16105299,47279.0,47278.0,0.317]
[1641215734619,0.09005299,47279.0,47278.0,0.14]
[1641215735221,0.24705299,47279.0,47278.0,0.322]
[1641215736624,0.09005299,47279.0,47278.0,0.14]
[1641215737324,0.09005299,47279.0,47278.0,0.331]
[1641215737925,0.09005299,47280.0,47278.0,0.331]
[1641215738726,0.09005299,47280.0,47278.0,0.14]
[1641215739327,0.09005299,47279.0,47278.0,0.317]
[1641215740729,0.09005299,47279.0,47278.0,0.14]
[1641215741228,0.15,47279.0,47278.0,0.326]
[1641215742730,0.09005299,47279.0,47278.0,0.14]
[1641215743131,0.09005299,47280.0,47278.0,0.14]
[1641215743331,0.083,47279.0,47278.0,0.33]
[1641215744733,0.09005299,47279.0,47278.0,0.14]
[1641215745334,0.067,47279.0,47278.0,0.33]
[1641215745936,0.15705299,47279.0,47278.0,0.33]
[1641215746734,0.09005299,47279.0,47278.0,0.14]
[1641215747335,0.25505299,47279.0,47278.0,0.326]
[1641215747834,0.165,47279.0,47278.0,0.326]
[1641215748638,0.09005299,47280.0,47278.0,0.14]
[1641215749238,0.09005299,47279.0,47278.0,0.327]
[1641215749840,1.28977284,47279.0,47278.0,0.327]
[1641215750539,1.19971985,47279.0,47278.0,0.327]
[1641215750739,1.19971985,47279.0,47278.0,0.14]
[1641215751249,1.19971985,47279.0,47278.0,0.335]
[1641215751744,1.28977284,47279.0,47278.0,0.335]
[1641215752649,1.19971985,47279.0,47278.0,0.14]
[1641215753247,1.19971985,47279.0,47278.0,0.332]
[1641215754648,1.19971985,47279.0,47278.0,0.14]
[1641215755348,1.19971985,47279.0,47278.0,0.329]
[1641215756749,1.19971985,47279.0,47278.0,0.14]
[1641215757353,0.119,47279.0,47278.0,0.35115139]
[1641215757954,0.20905299,47279.0,47278.0,0.35115139]
[1641215758856,0.09005299,47279.0,47278.0,0.16115139]
[1641215759273,0.09005299,47279.0,47278.0,0.35015139]
[1641215760070,1.19971985,47280.0,47278.0,0.35015139]
[1641215760669,1.19971985,47280.0,47278.0,0.16115139]
[1641215760870,0.09005299,47279.0,47278.0,0.16115139]
[1641215761171,0.09005299,47279.0,47278.0,0.02115139]
[1641215761475,0.09005299,47279.0,47278.0,0.20815139]
[1641215761871,1.33271985,47280.0,47278.0,0.20815139]
[1641215762472,0.92983726,47279.0,47278.0,0.20815139]
[1641215762672,0.92983726,47279.0,47278.0,0.02115139]
[1641215763373,0.92983726,47279.0,47278.0,0.21115139]
[1641215764173,0.09005299,47279.0,47278.0,0.21115139]
[1641215764373,0.09005299,47279.0,47278.0,0.39115139]
[1641215764574,1.25062177,47284.0,47278.0,1.92725296]
[1641215764775,0.36678812,47288.0,47283.0,0.32]
[1641215764978,0.67906696,47296.0,47287.0,0.42067134]
[1641215765176,0.67906696,47296.0,47295.0,0.14]
[1641215765776,0.68006696,47296.0,47295.0,0.14]
[1641215766580,0.001,47296.0,47295.0,0.14]
[1641215767380,0.001,47296.0,47295.0,0.2]
[1641215768580,0.001,47296.0,47295.0,0.14]
[1641215769481,0.001,47296.0,47295.0,0.308]
[1641215770781,0.001,47296.0,47295.0,0.14]
[1641215771484,0.14033567,47302.0,47295.0,0.308]
[1641215772083,0.18033567,47302.0,47295.0,0.168]
[1641215772284,0.14033567,47302.0,47297.0,0.14]
[1641215773786,0.14033567,47302.0,47297.0,0.2003]
[1641215775086,0.85889984,47298.0,47297.0,0.22144231]
[1641215775489,0.85889984,47298.0,47297.0,0.41344231]
[1641215776489,0.02,47298.0,47297.0,0.41344231]
[1641215776688,0.02,47298.0,47297.0,0.22144231]
[1641215776893,0.02,47298.0,47297.0,0.16114231]
[1641215777090,0.02,47298.0,47297.0,0.30147798]
[1641215777495,0.02,47298.0,47297.0,0.49247798]
[1641215778794,0.02,47298.0,47297.0,0.30147798]
[1641215778993,0.37950813,47298.0,47297.0,0.30147798]
[1641215779502,0.37950813,47298.0,47297.0,0.49847798]
[1641215779902,0.37950813,47298.0,47297.0,0.49947798]
[1641215780694,0.37950813,47298.0,47297.0,0.39270798]
[1641215781395,0.37950813,47298.0,47297.0,0.58970798]
[1641215782396,0.37950813,47298.0,47297.0,0.58870798]
[1641215782596,0.37950813,47298.0,47297.0,0.58970798]
[1641215782803,0.37950813,47298.0,47297.0,0.39270798]
[1641215782997,0.37950813,47298.0,47297.0,0.39170798]
[1641215783198,0.02,47298.0,47297.0,0.39270798]
[1641215783398,0.02,47298.0,47297.0,0.58970798]
[1641215784708,0.02,47298.0,47297.0,0.39170798]
[1641215784899,0.02,47298.0,47297.0,0.30147798]
[1641215785323,0.02,47298.0,47297.0,0.30247798]
[1641215785507,0.02,47298.0,47297.0,0.49847798]
[1641215785701,0.02,47298.0,47297.0,0.49947798]
[1641215786107,0.02,47298.0,47297.0,0.49847798]
[1641215786301,0.02,47298.0,47297.0,0.49947798]
[1641215786703,0.02,47298.0,47297.0,0.30147798]
[1641215786903,0.02,47298.0,47297.0,0.30247798]
[1641215787406,0.02,47298.0,47297.0,0.49947798]
[1641215787904,0.02,47298.0,47297.0,0.49847798]
[1641215788305,0.02,47298.0,47297.0,0.49947798]
[1641215789113,0.59918964,47301.0,47297.0,0.49947798]
[1641215789306,0.59918964,47301.0,47300.0,0.14]
[1641215789508,0.59918964,47301.0,47300.0,0.141]
[1641215789908,0.59918964,47303.0,47300.0,0.141]
[1641215790107,0.59918964,47303.0,47300.0,0.14]
[1641215791309,0.59918964,47303.0,47302.0,0.14033567]
[1641215793506,0.59918964,47303.0,47302.0,0.33533567]
[1641215794509,1.51033976,47319.0,47302.0,0.33533567]
[1641215794510,0.59918964,47308.0,47302.0,0.33533567]
[1641215794709,0.59918964,47308.0,47305.0,0.14]
[1641215795509,0.59918964,47308.0,47305.0,0.326]
[1641215795810,0.92890246,47307.0,47305.0,0.326]
[1641215796713,0.09000262,47306.0,47305.0,0.326]
[1641215797411,0.09000262,47306.0,47305.0,0.33]
[1641215797613,0.09000262,47306.0,47305.0,0.35113891]
[1641215798911,0.09000262,47306.0,47305.0,0.16113891]
[1641215799311,0.83889984,47307.0,47305.0,0.16113891]
[1641215799511,0.83889984,47307.0,47305.0,0.35013891]
[1641215800814,0.83889984,47307.0,47305.0,0.16113891]
[1641215801413,0.83889984,47307.0,47305.0,0.34913891]
[1641215802815,0.83889984,47307.0,47305.0,0.16113891]
[1641215803412,0.83889984,47307.0,47305.0,0.35013891]
[1641215803614,0.83889984,47308.0,47305.0,0.35013891]
[1641215804014,0.83889984,47308.0,47307.0,0.14]
[1641215804314,1.19835355,47309.0,47307.0,0.14]
[1641215804513,1.23835355,47309.0,47307.0,0.14]
[1641215804915,1.19835355,47309.0,47307.0,0.14]
[1641215805418,1.19835355,47309.0,47307.0,0.319]
[1641215806020,1.23835355,47309.0,47307.0,0.319]
[1641215806216,1.19835355,47309.0,47307.0,0.319]
[1641215806818,1.19835355,47309.0,47307.0,0.14]
[1641215807218,1.23835355,47309.0,47307.0,0.14]
[1641215807419,1.19835355,47310.0,47307.0,0.33]
[1641215807619,0.04,47309.0,47307.0,0.33]
[1641215808435,1.23835355,47309.0,47307.0,0.33]
[1641215808833,1.23835355,47309.0,47307.0,0.14]
[1641215809433,1.23835355,47309.0,47307.0,0.32]
[1641215809934,1.23835355,47309.0,47307.0,0.18]
[1641215810835,1.23835355,47309.0,47307.0,0.14]
[1641215811036,0.04,47309.0,47307.0,0.14]
[1641215811236,0.04,47309.0,47305.0,0.02113891]
[1641215811437,0.22370567,47312.0,47307.0,0.14]
[1641215811635,0.04,47309.0,47305.0,0.02113891]
[1641215811837,0.04,47309.0,47305.0,0.16113891]
[1641215812036,1.44000927,47307.0,47305.0,0.16113891]
[1641215813538,1.44000927,47307.0,47305.0,0.35113891]
[1641215814840,1.44000927,47307.0,47305.0,0.16113891]
[1641215815641,1.44000927,47307.0,47305.0,0.35113891]
[1641215817641,1.44000927,47307.0,47305.0,0.35613891]
[1641215818842,1.44000927,47307.0,47305.0,0.16113891]
[1641215819444,1.44000927,47306.0,47305.0,0.16113891]
[1641215819642,1.44000927,47306.0,47305.0,0.35613891]
[1641215820743,1.44000927,47306.0,47305.0,0.16113891]
[1641215821545,1.44000927,47306.0,47305.0,0.21513891]
[1641215821745,1.44000927,47306.0,47305.0,0.35513891]
[1641215822345,1.44000927,47306.0,47305.0,0.21513891]
[1641215822946,1.44000927,47307.0,47305.0,0.02113891]
[1641215823550,0.09000126,47308.0,47306.0,0.14]
[1641215823747,0.09000126,47308.0,47307.0,0.14]
[1641215824650,0.09000126,47308.0,47305.0,0.21613891]
[1641215824850,0.09000126,47308.0,47307.0,0.14]
[1641215825050,0.09000126,47308.0,47305.0,0.21613891]
[1641215825550,0.09000126,47308.0,47305.0,0.02113891]
[1641215826153,0.09000126,47308.0,47307.0,0.14]
[1641215826652,0.09000126,47308.0,47305.0,0.02113891]
[1641215827553,0.09000126,47308.0,47307.0,0.12]
[1641215827755,0.09000126,47308.0,47307.0,0.14]
[1641215828157,0.09000126,47308.0,47305.0,0.17113891]
[1641215828356,0.09000126,47308.0,47307.0,0.14]
[1641215828556,0.09000126,47308.0,47305.0,0.17113891]
[1641215828759,0.09000126,47308.0,47307.0,0.14]
[1641215829457,0.09000126,47308.0,47305.0,0.02113891]
[1641215829857,0.09000126,47308.0,47307.0,0.14]
[1641215831571,0.09000126,47311.0,47307.0,0.14]
[1641215832564,0.09000126,47311.0,47307.0,0.02]
[1641215832765,0.04,47310.0,47307.0,0.14]
[1641215832965,0.09000126,47311.0,47307.0,0.14]
[1641215833165,0.09000126,47309.0,47307.0,0.14]
[1641215833665,0.09000126,47309.0,47305.0,0.02113891]
[1641215833865,0.09000126,47309.0,47307.0,0.14]
[1641215834567,0.09000126,47309.0,47305.0,0.02113891]
[1641215835366,0.09000126,47309.0,47307.0,0.14]
[1641215836569,0.09000126,47309.0,47305.0,0.12213891]
[1641215836771,0.09000126,47309.0,47305.0,0.02113891]
[1641215837072,0.09000126,47311.0,47305.0,0.02113891]
[1641215838569,0.04,47310.0,47305.0,0.02113891]
[1641215838771,1.44004059,47307.0,47305.0,0.02113891]
[1641215838970,1.44004059,47307.0,47306.0,0.14]
[1641215839372,1.44004059,47307.0,47305.0,0.02113891]
[1641215839971,1.44004059,47307.0,47306.0,0.14]
[1641215840173,1.44004059,47307.0,47305.0,0.02113891]
[1641215840377,1.44004059,47307.0,47306.0,0.14]
[1641215840674,1.44004059,47307.0,47305.0,0.02113891]
[1641215841475,1.44004059,47307.0,47305.0,0.15413891]
[1641215843000,1.44004059,47307.0,47305.0,0.02113891]
[1641215843196,1.44004059,47307.0,47306.0,0.14]
[1641215843400,1.44004059,47307.0,47305.0,0.02113891]
[1641215843599,1.44004059,47307.0,47306.0,0.14]
[1641215843992,1.44004059,47307.0,47305.0,0.16013891]
[1641215844191,1.44004059,47307.0,47306.0,0.14]
[1641215844598,1.44004059,47307.0,47305.0,0.16013891]
[1641215844797,1.44004059,47307.0,47306.0,0.14]
[1641215845600,1.55801434,47314.0,47306.0,0.14]
[1641215845601,0.94385127,47314.0,47306.0,0.89312814]
[1641215845893,0.24740284,47319.0,47313.0,0.14]
[1641215845894,0.00612525,47319.0,47313.0,0.14]
[1641215846095,0.00612525,47319.0,47318.0,0.2]
[1641215846294,0.00612525,47319.0,47318.0,0.021]
[1641215846494,1.71992656,47325.0,47318.0,0.14]
[1641215846894,0.04,47325.0,47315.0,0.59373007]
[1641215847593,0.04,47325.0,47320.0,0.12]
[1641215847793,0.04,47325.0,47315.0,0.77873007]
[1641215848194,0.14033567,47326.0,47315.0,0.77873007]
[1641215848393,0.14033567,47326.0,47320.0,0.14]
[1641215848594,0.04,47325.0,47317.0,0.59373007]
[1641215848993,0.04,47325.0,47320.0,0.14]
[1641215849596,0.14033567,47326.0,47320.0,0.158]
[1641215849799,0.04,47325.0,47320.0,0.298]
[1641215850397,0.04,47325.0,47320.0,0.158]
[1641215850798,1.580019,47321.0,47316.0,0.80283007]
[1641215850996,1.580019,47321.0,47317.0,0.59373007]
[1641215851197,1.580019,47321.0,47320.0,0.14]
[1641215853497,1.580019,47321.0,47320.0,0.186]
[1641215853698,1.580019,47321.0,47320.0,0.206]
[1641215853999,1.580019,47321.0,47320.0,0.326]
[1641215854599,1.580019,47321.0,47320.0,0.186]
[1641215854800,1.580019,47321.0,47320.0,0.14]
[1641215855401,1.580019,47321.0,47320.0,0.33]
[1641215855601,1.580019,47321.0,47320.0,0.21]
[1641215855801,1.580019,47321.0,47320.0,0.33]
[1641215856902,1.580019,47321.0,47320.0,0.14]
[1641215857607,1.580019,47321.0,47320.0,0.318]
[1641215857803,1.580019,47321.0,47320.0,0.298]
[1641215858905,1.580019,47321.0,47320.0,0.12]
[1641215859103,0.14033567,47321.0,47320.0,0.12]
[1641215859503,0.14033567,47321.0,47320.0,0.306]
[1641215860604,0.14033567,47321.0,47320.0,0.89973007]
[1641215860805,0.14033567,47321.0,47320.0,0.71373007]
[1641215861307,0.14033567,47321.0,47320.0,1.67342818]
[1641215861604,0.14033567,47321.0,47320.0,1.86142818]
[1641215862805,0.14033567,47321.0,47320.0,1.67342818]
[1641215863008,0.14033567,47321.0,47320.0,1.07969811]
[1641215863705,0.14033567,47321.0,47320.0,1.26369811]
[1641215865207,0.14033567,47321.0,47320.0,1.85514729]
[1641215865406,0.14033567,47321.0,47320.0,1.84414729]
[1641215865809,0.14033567,47321.0,47320.0,0.88444918]
[1641215866712,1.43968333,47324.0,47320.0,0.88444918]
[1641215866910,1.77420115,47332.0,47323.0,0.34112463]
[1641215866911,1.55965511,47331.0,47323.0,0.34112463]
[1641215867113,1.67992656,47342.0,47330.0,0.02112008]
[1641215867411,1.38883827,47342.0,47340.0,0.321]
[1641215867611,1.38883827,47342.0,47341.0,0.181]
[1641215867811,1.38883827,47342.0,47341.0,0.60200701]
[1641215868012,2.39811188,47358.0,47341.0,0.60200701]
[1641215868314,2.39811188,47358.0,47347.0,0.14]
[1641215868616,0.54321188,47358.0,47347.0,0.16211767]
[1641215868811,1.949,47361.0,47357.0,0.02]
[1641215869012,1.949,47361.0,47357.0,0.08354]
[1641215869212,0.18033567,47363.0,47357.0,0.08354]
[1641215869413,0.04,47360.0,47357.0,0.08354]
[1641215869611,0.14033567,47363.0,47357.0,0.24254]
[1641215869811,0.04,47359.0,47358.0,0.0211164]
[1641215870014,0.04,47359.0,47357.0,0.159]
[1641215870315,0.10999,47359.0,47357.0,0.159]
[1641215870512,0.06999,47359.0,47357.0,0.159]
[1641215870713,0.04,47358.0,47357.0,0.159]
[1641215871113,0.18033567,47363.0,47355.0,0.14033567]
[1641215871314,0.14033567,47363.0,47355.0,0.14033567]
[1641215871613,0.18033567,47363.0,47355.0,0.14033567]
[1641215871815,0.14033567,47363.0,47355.0,0.14033567]
[1641215872416,0.14033567,47363.0,47357.0,2.61883587]
[1641215873017,0.14033567,47363.0,47358.0,0.14]
[1641215873317,0.04,47361.0,47358.0,0.14]
[1641215873520,0.14033567,47363.0,47358.0,0.14]
[1641215873917,0.14033567,47363.0,47357.0,2.78383587]
[1641215874519,0.14033567,47363.0,47358.0,0.14]
[1641215874718,0.04,47360.0,47357.0,2.78383587]
[1641215874916,0.14033567,47363.0,47357.0,2.78383587]
[1641215874917,0.14033567,47363.0,47357.0,2.61883587]
[1641215875319,0.14033567,47363.0,47358.0,0.14]
[1641215876221,0.04,47361.0,47358.0,0.02111628]
[1641215876419,0.04,47360.0,47357.0,2.77783587]
[1641215877020,0.04,47360.0,47358.0,0.14]
[1641215877419,0.04,47360.0,47357.0,2.77783587]
[1641215877619,0.04,47360.0,47358.0,0.178]
[1641215878921,0.04,47360.0,47357.0,2.61883587]
[1641215879420,0.04,47360.0,47358.0,0.14]
[1641215879620,0.04,47360.0,47357.0,2.79883587]
[1641215880222,0.04,47360.0,47358.0,0.14]
[1641215880422,0.14033567,47363.0,47358.0,0.14]
[1641215880726,0.14033567,47363.0,47357.0,2.79883587]
[1641215881022,0.14033567,47363.0,47358.0,0.14]
[1641215881622,0.04,47360.0,47358.0,0.307]
[1641215882023,0.04,47360.0,47358.0,0.167]
[1641215882423,0.14033567,47363.0,47358.0,0.307]
[1641215883025,0.14033567,47363.0,47358.0,0.14]
[1641215883625,0.14033567,47363.0,47358.0,0.307]
[1641215884927,0.14033567,47363.0,47358.0,0.14]
[1641215885626,0.14033567,47363.0,47358.0,0.309]
[1641215885827,0.14033567,47363.0,47358.0,0.169]
[1641215886027,0.14033567,47363.0,47359.0,0.14]
[1641215887630,0.14033567,47363.0,47359.0,0.309]
[1641215888031,0.14033567,47368.0,47359.0,0.309]
[1641215888935,0.04,47367.0,47359.0,0.14]
[1641215889234,0.14033567,47368.0,47362.0,0.02111451]
[1641215889235,0.18033567,47368.0,47362.0,0.02111451]
[1641215889837,0.04,47363.0,47362.0,0.02111451]
[1641215890652,0.04,47363.0,47359.0,0.172]
[1641215890653,0.050794,47363.0,47359.0,0.172]
[1641215890851,0.050794,47363.0,47340.0,0.3208565]
[1641215890852,0.11397331,47360.0,47342.0,0.02112331]
[1641215891054,0.04,47349.0,47344.0,0.14]
[1641215891254,0.04,47346.0,47344.0,0.14]
[1641215891652,0.07906,47349.0,47344.0,0.14]
[1641215891653,0.27006,47349.0,47344.0,0.14]
[1641215893555,0.07906,47349.0,47344.0,0.14]
[1641215893755,0.26706,47349.0,47344.0,0.14]
[1641215893957,0.26706,47349.0,47342.0,0.02112331]
[1641215894157,0.26706,47349.0,47342.0,0.16112331]
[1641215894757,0.26706,47349.0,47348.0,0.14]
[1641215894956,0.07906,47349.0,47348.0,0.14]
[1641215895158,0.009794,47356.0,47348.0,0.16111873]
[1641215895657,0.197794,47356.0,47348.0,0.16111873]
[1641215895958,0.197794,47356.0,47351.0,0.14033567]
[1641215896563,1.43186999,47355.0,47351.0,0.14033567]
[1641215897760,0.189,47355.0,47351.0,0.14033567]
[1641215897962,0.189,47355.0,47352.0,1.54599537]
[1641215898962,0.009794,47356.0,47352.0,1.54599537]
[1641215899763,0.198794,47356.0,47352.0,1.54599537]
[1641215901064,0.009794,47356.0,47352.0,1.54599537]
[1641215901263,0.009794,47356.0,47351.0,0.14033567]
[1641215901264,1.43186999,47355.0,47351.0,0.14033567]
[1641215901963,1.43186999,47355.0,47354.0,0.14]
[1641215902164,1.63266399,47356.0,47354.0,0.24238707]
[1641215902364,1.63266399,47356.0,47354.0,0.24138707]
[1641215902565,1.63266399,47356.0,47354.0,0.08027]
[1641215903063,1.44166399,47356.0,47354.0,0.08027]
[1641215903263,0.009794,47356.0,47354.0,0.08027]
[1641215903465,0.04,47355.0,47351.0,0.16145538]
[1641215903663,0.04,47352.0,47351.0,0.16145538]
[1641215904765,0.04,47352.0,47351.0,0.14033567]
[1641215905766,0.225,47352.0,47351.0,0.14033567]
[1641215906365,0.225,47352.0,47345.0,0.58682169]
[1641215906566,0.225,47352.0,47344.0,0.58682169]
[1641215906567,0.04,47346.0,47344.0,0.58682169]
[1641215906770,0.04,47349.0,47344.0,0.58682169]
[1641215906967,0.04,47350.0,47344.0,0.58682169]
[1641215907667,0.227,47350.0,47344.0,0.58682169]
[1641215908067,0.227,47350.0,47343.0,0.021123]
[1641215908266,0.14033567,47347.0,47343.0,0.021123]
[1641215908466,0.14033567,47347.0,47343.0,0.161123]
[1641215908667,1.1987128,47344.0,47343.0,0.041123]
[1641215909066,1.1987128,47344.0,47343.0,0.021123]
[1641215909768,1.4237128,47344.0,47342.0,0.58682169]
[1641215909967,1.3837128,47344.0,47342.0,0.58682169]
[1641215910568,0.185,47344.0,47341.0,0.14]
[1641215910969,0.18033567,47347.0,47341.0,0.14]
[1641215911367,1.61220566,47347.0,47341.0,0.14]
[1641215911769,1.79820566,47347.0,47341.0,0.14]
[1641215911971,0.36633567,47347.0,47341.0,0.14]
[1641215912369,0.36633567,47347.0,47339.0,0.58682169]
[1641215912576,0.36633567,47347.0,47339.0,0.72682169]
[1641215912771,1.79820566,47347.0,47338.0,0.60794689]
[1641215913076,1.61220566,47347.0,47338.0,0.60794689]
[1641215913570,1.61220566,47347.0,47341.0,0.14]
[1641215913771,0.04,47344.0,47341.0,0.14]
[1641215913970,1.19874094,47340.0,47338.0,0.74794689]
[1641215914870,0.009794,47339.0,47338.0,0.60794689]
[1641215915073,0.009794,47339.0,47336.0,0.82485495]
[1641215915271,0.04,47337.0,47336.0,0.82485495]
[1641215915671,0.197794,47339.0,47336.0,0.82485495]
[1641215916270,0.14033567,47337.0,47336.0,0.82485495]
[1641215916570,0.14033567,47337.0,47334.0,0.14]
[1641215917169,0.04,47335.0,47332.0,0.95943399]
[1641215917570,0.14033567,47337.0,47331.0,0.96519062]
[1641215917773,0.185,47335.0,47334.0,0.14]
[1641215918774,1.3838551,47335.0,47334.0,0.14]
[1641215918973,1.4238551,47335.0,47332.0,0.82485495]
[1641215919173,1.2388551,47335.0,47332.0,0.82485495]
[1641215919573,1.1988551,47335.0,47334.0,0.02]
[1641215919775,1.3848551,47335.0,47334.0,0.14]
[1641215920977,1.3848551,47335.0,47334.0,0.001]
[1641215920978,1.1988551,47335.0,47334.0,0.001]
[1641215921375,1.1988551,47335.0,47332.0,0.82485495]
[1641215921975,1.3848551,47335.0,47332.0,0.82485495]
[1641215922478,1.3848551,47335.0,47334.0,0.14]
[1641215922675,0.186,47335.0,47334.0,0.14]
[1641215923276,0.18033567,47337.0,47334.0,0.14]
[1641215923777,0.36633567,47337.0,47334.0,0.14]
[1641215924679,0.32633567,47337.0,47334.0,0.14]
[1641215924982,0.32633567,47337.0,47333.0,0.58977058]
[1641215924983,0.04,47335.0,47333.0,0.58977058]
[1641215925180,0.14033567,47337.0,47333.0,0.58977058]
[1641215925580,0.04,47335.0,47333.0,0.58977058]
[1641215926481,0.04,47335.0,47334.0,0.14]
[1641215926681,0.32633567,47337.0,47331.0,0.82485495]
[1641215926882,0.32633567,47337.0,47335.0,0.14]
[1641215927083,0.14033567,47337.0,47335.0,0.14]
[1641215927782,0.32733567,47337.0,47335.0,0.14]
[1641215928585,0.32733567,47337.0,47332.0,0.14]
[1641215928986,0.04,47336.0,47332.0,0.14]
[1641215929185,0.04,47336.0,47326.0,0.610135]
[1641215929385,0.04,47336.0,47328.0,0.14]
[1641215929885,0.225,47336.0,47328.0,0.14]
[1641215930286,0.225,47336.0,47326.0,0.610135]
[1641215930688,0.225,47336.0,47326.0,0.02113049]
[1641215931186,0.04,47336.0,47326.0,0.02113049]
[1641215931490,0.14033567,47337.0,47326.0,0.02113049]
[1641215931887,0.185,47336.0,47335.0,0.14]
[1641215932188,0.185,47336.0,47332.0,0.14]
[1641215932386,0.185,47336.0,47327.0,0.32033567]
[1641215932588,0.185,47336.0,47332.0,0.14]
[1641215932889,0.185,47336.0,47327.0,0.32033567]
[1641215933092,0.185,47336.0,47332.0,0.14]
[1641215933292,0.14033567,47337.0,47332.0,0.14]
[1641215933491,0.18033567,47337.0,47332.0,0.14]
[1641215933890,0.36433567,47337.0,47332.0,0.14]
[1641215934092,0.32433567,47337.0,47332.0,0.14]
[1641215935294,0.14033567,47337.0,47332.0,0.14]
[1641215935894,0.33133567,47337.0,47332.0,0.14]
[1641215937195,0.14033567,47337.0,47332.0,0.14]
[1641215937796,0.33033567,47337.0,47332.0,0.14]
[1641215937999,0.33033567,47337.0,47327.0,0.32033567]
[1641215938197,0.33033567,47337.0,47335.0,0.14]
[1641215939120,0.14033567,47337.0,47335.0,0.14]
[1641215939722,0.18033567,47337.0,47335.0,0.14]
[1641215939924,0.36933567,47337.0,47335.0,0.14]
[1641215940221,0.36933567,47337.0,47333.0,0.14]
[1641215940821,0.32933567,47337.0,47327.0,0.14033567]
[1641215941020,0.36933567,47337.0,47331.0,0.14]
[1641215941219,0.36933567,47337.0,47327.0,0.14033567]
[1641215941427,0.18033567,47337.0,47334.0,0.14]
[1641215941721,0.18033567,47337.0,47327.0,0.14033567]
[1641215941922,0.18033567,47337.0,47334.0,0.14]
[1641215942122,0.37033567,47337.0,47334.0,0.14]
[1641215942321,0.37033567,47337.0,47327.0,0.14033567]
[1641215942521,0.37033567,47337.0,47334.0,0.14]
[1641215943224,0.37033567,47337.0,47327.0,0.14033567]
[1641215943426,0.37033567,47337.0,47334.0,0.14]
[1641215943825,0.55933567,47337.0,47334.0,0.14]
[1641215944024,0.36933567,47337.0,47334.0,0.14]
[1641215945129,0.32933567,47337.0,47334.0,0.14]
[1641215945331,0.14033567,47337.0,47334.0,0.14]
[1641215945930,0.33033567,47337.0,47334.0,0.14]
[1641215947325,0.33033567,47337.0,47335.0,1.54829446]
[1641215949829,0.32933567,47337.0,47335.0,1.54829446]
[1641215951231,0.14033567,47337.0,47335.0,1.54829446]
[1641215951833,0.32933567,47337.0,47335.0,1.54829446]
[1641215952030,0.36933567,47337.0,47335.0,1.54829446]
[1641215953232,0.18033567,47337.0,47335.0,1.54829446]
[1641215953833,0.36833567,47337.0,47335.0,1.54829446]
[1641215955231,0.18033567,47337.0,47335.0,1.54829446]
[1641215956031,0.36833567,47337.0,47335.0,1.54829446]
[1641215957032,0.44331567,47337.0,47335.0,1.54829446]
[1641215957234,0.29531567,47337.0,47335.0,1.54829446]
[1641215957834,0.47931567,47337.0,47335.0,1.54829446]
[1641215958637,0.47931567,47337.0,47334.0,0.58900451]
[1641215959244,0.29531567,47337.0,47334.0,0.58900451]
[1641215959842,0.48131567,47337.0,47334.0,0.58900451]
[1641215960142,0.40633567,47337.0,47334.0,0.58900451]
[1641215960442,0.40633567,47337.0,47334.0,0.72900451]
[1641215960643,0.40633567,47337.0,47335.0,0.58900451]
[1641215961143,0.22033567,47337.0,47335.0,0.58900451]
[1641215961543,0.22033567,47337.0,47334.0,0.72900451]
[1641215961742,0.22033567,47337.0,47334.0,0.58900451]
[1641215961946,0.40533567,47337.0,47334.0,0.72900451]
[1641215962144,0.40533567,47337.0,47334.0,0.58900451]
[1641215962746,0.40533567,47337.0,47334.0,0.72900451]
[1641215963349,0.22033567,47337.0,47334.0,0.72900451]
[1641215963947,0.40633567,47337.0,47334.0,0.58900451]